fUST/lending_fUST_20240726
["ID","MTS","AMOUNT","RATE_DAILY","PERIOD"]
[333235517,1721962240983,-151.0,0.00013698,2]
[333235518,1721962240994,-151.0,0.00013698,2]
[333235519,1721962241005,-500.0,0.00013698,2]
[333235520,1721962241017,-151.0,0.00013698,2]
[333235521,1721962241027,-151.0,0.00013698,2]
[333235522,1721962241038,-151.0,0.00013698,2]
[333235523,1721962241050,-179.247721,0.00013698,2]
[333235524,1721962241060,-543.930451,0.00013698,2]
[333235525,1721962241072,-543.930451,0.00013698,2]
[333235526,1721962241083,-543.930451,0.00013698,2]
[333235527,1721962241094,-557.28,0.00013698,2]
[333235528,1721962241106,-543.930451,0.00013698,2]
[333235529,1721962241117,-543.930451,0.00013698,2]
[333235530,1721962241126,-543.930451,0.00013698,2]
[333235531,1721962241138,-543.930451,0.00013698,2]
[333235532,1721962241149,-500.0,0.00013698,2]
[333235533,1721962241160,-543.930451,0.00013698,2]
[333235534,1721962241170,-543.930451,0.00013698,2]
[333235535,1721962241179,-543.930451,0.00013698,2]
[333235536,1721962241190,-543.930451,0.00013698,2]
[333235537,1721962241199,-543.930451,0.00013698,2]
[333235538,1721962241209,-543.930451,0.00013698,2]
[333235539,1721962241218,-543.930451,0.00013698,2]
[333235540,1721962241227,-543.930451,0.00013698,2]
[333235541,1721962241237,-543.930451,0.00013698,2]
[333235542,1721962241247,-543.930451,0.00013698,2]
[333235543,1721962241256,-543.930451,0.00013698,2]
[333235544,1721962241265,-500.0,0.00013698,2]
[333235545,1721962241275,-543.930451,0.00013698,2]
[333235546,1721962241284,-543.93046,0.00013698,2]
[333235547,1721962241294,-516.25,0.00013698,2]
[333235548,1721962241303,-252.334552,0.00013698,2]
[333235549,1721962241313,-555.82786213,0.00013698,2]
[333235550,1721962241323,-500.0,0.00013698,2]
[333235551,1721962241333,-500.0,0.00013698,2]
[333235552,1721962241342,-500.0,0.00013698,2]
[333235553,1721962241352,-502.45948029,0.00013698,2]
[333235554,1721962241362,-513.62782091,0.00013698,2]
[333235555,1721962241371,-512.14634915,0.00013698,2]
[333235556,1721962241381,-500.0,0.00013698,2]
[333235557,1721962241391,-500.0,0.00013698,2]
[333235558,1721962241402,-500.0,0.00013698,2]
[333235559,1721962241412,-500.0,0.00013698,2]
[333235560,1721962241422,-500.0,0.00013698,2]
[333235561,1721962241431,-501.67690239,0.00013698,2]
[333235562,1721962241441,-786.7,0.00013698,2]
[333235563,1721962241452,-510.54800537,0.00013698,2]
[333235564,1721962241464,-510.88043451,0.00013698,2]
[333235565,1721962241474,-500.0,0.00013698,2]
[333235566,1721962241483,-500.0,0.00013698,2]
[333235567,1721962241494,-500.0,0.00013698,2]
[333235568,1721962241504,-500.0,0.00013698,2]
[333235569,1721962241514,-500.0,0.00013698,2]
[333235570,1721962241523,-500.0,0.00013698,2]
[333235571,1721962241533,-500.0,0.00013698,2]
[333235572,1721962241543,-500.0,0.00013698,2]
[333235573,1721962241553,-500.0,0.00013698,2]
[333235574,1721962241563,-1299.76,0.00013698,2]
[333235575,1721962241574,-500.0,0.00013698,2]
[333235576,1721962241589,-635.04130408,0.00013698,2]
[333235577,1721962241602,-151.0,0.00013698,2]
[333235578,1721962241612,-151.0,0.00013698,2]
[333235579,1721962241623,-151.0,0.00013698,2]
[333235580,1721962241633,-151.0,0.00013698,2]
[333235581,1721962241644,-155.159551,0.00013698,2]
[333235582,1721962241656,-151.0,0.00013698,2]
[333235583,1721962241668,-151.0,0.00013698,2]
[333235584,1721962241679,-151.0,0.00013698,2]
[333235585,1721962241692,-151.0,0.00013698,2]
[333235586,1721962241702,-151.0,0.00013698,2]
[333235587,1721962241712,-151.0,0.00013698,2]
[333235588,1721962241725,-809.2,0.00013698,2]
[333235589,1721962241736,-151.0,0.00013698,2]
[333235590,1721962241746,-151.0,0.00013698,2]
[333235591,1721962241755,-151.0,0.00013698,2]
[333235592,1721962241765,-284.219966,0.00013698,2]
[333235593,1721962241776,-645.14,0.00013698,2]
[333235594,1721962241786,-500.0,0.00013698,2]
[333235595,1721962241798,-689.27,0.00013698,2]
[333235596,1721962241809,-500.0,0.00013698,2]
[333235597,1721962241820,-500.0,0.00013698,2]
[333235598,1721962241830,-500.0,0.00013698,2]
[333235599,1721962241842,-506.56656262,0.00013698,2]
[333235600,1721962241855,-182.383121,0.00013698,2]
[333235601,1721962241867,-182.383121,0.00013698,2]
[333235602,1721962241877,-182.383121,0.00013698,2]
[333235603,1721962241887,-182.383121,0.00013698,2]
[333235604,1721962241898,-182.383121,0.00013698,2]
[333235605,1721962241908,-182.383121,0.00013698,2]
[333235606,1721962241918,-182.383121,0.00013698,2]
[333235607,1721962241927,-500.0,0.00013698,2]
[333235608,1721962241940,-182.383121,0.00013698,2]
[333235609,1721962241950,-182.383121,0.00013698,2]
[333235610,1721962241962,-182.383121,0.00013698,2]
[333235611,1721962241972,-182.383121,0.00013698,2]
[333235612,1721962241982,-182.383121,0.00013698,2]
[333235613,1721962241991,-500.0,0.00013698,2]
[333235614,1721962242002,-507.51573713,0.00013698,2]
[333235615,1721962242013,-182.383121,0.00013698,2]
[333235616,1721962242023,-182.383121,0.00013698,2]
[333235617,1721962242034,-182.383121,0.00013698,2]
[333235618,1721962242045,-182.383121,0.00013698,2]
[333235619,1721962242055,-182.383121,0.00013698,2]
[333235620,1721962242065,-182.383121,0.00013698,2]
[333235621,1721962242075,-182.383121,0.00013698,2]
[333235622,1721962242085,-182.383124,0.00013698,2]
[333235623,1721962242095,-501.88581582,0.00013698,2]
[333235624,1721962242107,-151.0,0.00013698,2]
[333235625,1721962242116,-151.0,0.00013698,2]
[333235626,1721962242126,-151.0,0.00013698,2]
[333235627,1721962242136,-151.852849,0.00013698,2]
[333235628,1721962242146,-503.3286349,0.00013698,2]
[333235629,1721962242156,-504.30766498,0.00013698,2]
[333235630,1721962242166,-500.0,0.00013698,2]
[333235631,1721962242176,-503.5,0.00013698,2]
[333235632,1721962242186,-500.0,0.00013698,2]
[333235633,1721962242195,-500.0,0.00013698,2]
[333235634,1721962242205,-500.0,0.00013698,2]
[333235635,1721962242215,-500.0,0.00013698,2]
[333235636,1721962242225,-900.08,0.00013698,2]
[333235637,1721962242236,-504.19036486,0.00013698,2]
[333235638,1721962242246,-500.0,0.00013698,2]
[333235639,1721962242256,-582.96,0.00013698,2]
[333235640,1721962242265,-500.0,0.00013698,2]
[333235641,1721962242275,-504.17779074,0.00013698,2]
[333235642,1721962242285,-500.0,0.00013698,2]
[333235643,1721962242296,-500.0,0.00013698,2]
[333235644,1721962242306,-1006.82,0.00013698,2]
[333235645,1721962242316,-338.65349945,0.00013698,2]
[333235646,1721962242326,-500.63549699,0.00013698,2]
[333235647,1721962242336,-500.0,0.00013698,2]
[333235648,1721962242346,-817.95,0.00013698,2]
[333235649,1721962242358,-591.97,0.00013698,2]
[333235650,1721962242368,-504.0056046,0.00013698,2]
[333235651,1721962242378,-500.0,0.00013698,2]
[333235652,1721962242387,-646.50861846,0.00013698,2]
[333235653,1721962242397,-500.0,0.00013698,2]
[333235654,1721962242407,-502.5900231,0.00013698,2]
[333235655,1721962242416,-506.48476977,0.00013698,2]
[333235656,1721962242426,-500.0,0.00013698,2]
[333235657,1721962242436,-651.82,0.00013698,2]
[333235658,1721962242446,-151.0,0.00013698,2]
[333235659,1721962242456,-500.0,0.00013698,2]
[333235660,1721962242466,-181.058074,0.00013698,2]
[333235661,1721962242476,-431.51282812,0.00013698,2]
[333235662,1721962242486,-504.23416786,0.00013698,2]
[333235663,1721962242496,-500.0,0.00013698,2]
[333235664,1721962242506,-500.0,0.00013698,2]
[333235665,1721962242515,-500.0,0.00013698,2]
[333235666,1721962242525,-500.0,0.00013698,2]
[333235667,1721962242535,-501.55215127,0.00013698,2]
[333235668,1721962242546,-598.47,0.00013698,2]
[333235669,1721962242556,-1032.28,0.00013698,2]
[333235670,1721962242568,-500.0,0.00013698,2]
[333235671,1721962242581,-500.0,0.00013698,2]
[333235672,1721962242592,-500.0,0.00013698,2]
[333235673,1721962242605,-500.0,0.00013698,2]
[333235674,1721962242614,-500.0,0.00013698,2]
[333235675,1721962242625,-831.29,0.00013698,2]
[333235677,1721962242635,-151.0,0.00013698,2]
[333235679,1721962242644,-151.0,0.00013698,2]
[333235683,1721962242655,-500.0,0.00013698,2]
[333235685,1721962242665,-151.0,0.00013698,2]
[333235687,1721962242676,-151.0,0.00013698,2]
[333235689,1721962242685,-151.0,0.00013698,2]
[333235691,1721962242694,-151.0,0.00013698,2]
[333235693,1721962242704,-151.0,0.00013698,2]
[333235695,1721962242713,-500.0,0.00013698,2]
[333235697,1721962242723,-151.0,0.00013698,2]
[333235699,1721962242733,-151.0,0.00013698,2]
[333235701,1721962242742,-151.0,0.00013698,2]
[333235703,1721962242752,-151.0,0.00013698,2]
[333235708,1721962242787,-151.0,0.00013698,2]
[333235710,1721962242797,-151.0,0.00013698,2]
[333235712,1721962242806,-151.0,0.00013698,2]
[333235714,1721962242816,-151.0,0.00013698,2]
[333235716,1721962242826,-260.239553,0.00013698,2]
[333235718,1721962242835,-541.39,0.00013698,2]
[333235720,1721962242845,-500.0,0.00013698,2]
[333235722,1721962242858,-500.0,0.00013698,2]
[333235724,1721962242868,-502.70979081,0.00013698,2]
[333235727,1721962242877,-500.0,0.00013698,2]
[333235730,1721962242889,-864.46,0.00013698,2]
[333235733,1721962242899,-500.0,0.00013698,2]
[333235738,1721962242920,-500.0,0.00013698,2]
[333235741,1721962242931,-500.0,0.00013698,2]
[333235744,1721962242940,-501.70497388,0.00013698,2]
[333235746,1721962242949,-500.0,0.00013698,2]
[333235748,1721962242959,-924.67,0.00013698,2]
[333235750,1721962242968,-500.0,0.00013698,2]
[333235751,1721962242977,-500.0,0.00013698,2]
[333235753,1721962242986,-500.0,0.00013698,2]
[333235755,1721962242996,-432.29984313,0.00013698,2]
[333235757,1721962243007,-500.0,0.00013698,2]
[333235758,1721962243017,-500.0,0.00013698,2]
[333235759,1721962243027,-501.21342524,0.00013698,2]
[333235760,1721962243037,-500.0,0.00013698,2]
[333235761,1721962243047,-818.23,0.00013698,2]
[333235762,1721962243057,-500.0,0.00013698,2]
[333235763,1721962243068,-500.0,0.00013698,2]
[333235764,1721962243078,-500.0,0.00013698,2]
[333235765,1721962243088,-419.36682079,0.00013698,2]
[333235766,1721962243098,-500.0,0.00013698,2]
[333235768,1721962243112,-500.0,0.00013698,2]
[333235770,1721962243122,-502.67013176,0.00013698,2]
[333235772,1721962243132,-500.0,0.00013698,2]
[333235774,1721962243145,-500.0,0.00013698,2]
[333235776,1721962243154,-909.41,0.00013698,2]
[333235778,1721962243164,-500.0,0.00013698,2]
[333235780,1721962243173,-500.0,0.00013698,2]
[333235782,1721962243182,-500.0,0.00013698,2]
[333235784,1721962243191,-500.0,0.00013698,2]
[333235786,1721962243200,-500.0,0.00013698,2]
[333235788,1721962243209,-519.79005777,0.00013698,2]
[333235790,1721962243219,-500.0,0.00013698,2]
[333235792,1721962243228,-470.00421233,0.00013698,2]
[333235794,1721962243238,-500.0,0.00013698,2]
[333235795,1721962243248,-191.139056,0.00013698,2]
[333235797,1721962243257,-500.0,0.00013698,2]
[333235799,1721962243267,-191.139056,0.00013698,2]
[333235802,1721962243278,-1307.32,0.00013698,2]
[333235804,1721962243289,-191.139056,0.00013698,2]
[333235805,1721962243298,-191.139056,0.00013698,2]
[333235807,1721962243308,-191.139056,0.00013698,2]
[333235810,1721962243319,-191.139056,0.00013698,2]
[333235811,1721962243329,-191.139056,0.00013698,2]
[333235812,1721962243338,-191.139056,0.00013698,2]
[333235813,1721962243348,-191.139056,0.00013698,2]
[333235814,1721962243361,-191.139056,0.00013698,2]
[333235815,1721962243371,-191.139056,0.00013698,2]
[333235816,1721962243380,-500.0,0.00013698,2]
[333235817,1721962243390,-191.139056,0.00013698,2]
[333235818,1721962243400,-191.139056,0.00013698,2]
[333235819,1721962243410,-191.139056,0.00013698,2]
[333235820,1721962243420,-191.139056,0.00013698,2]
[333235821,1721962243430,-191.139056,0.00013698,2]
[333235822,1721962243440,-500.0,0.00013698,2]
[333235823,1721962243450,-191.139056,0.00013698,2]
[333235824,1721962243460,-191.139056,0.00013698,2]
[333235825,1721962243469,-191.139056,0.00013698,2]
[333235826,1721962243478,-500.0,0.00013698,2]
[333235827,1721962243488,-191.139066,0.00013698,2]
[333235828,1721962243499,-504.78094596,0.00013698,2]
[333235829,1721962243509,-500.0,0.00013698,2]
[333235830,1721962243519,-500.0,0.00013698,2]
[333235831,1721962243528,-500.0,0.00013698,2]
[333235832,1721962243538,-629.31,0.00013698,2]
[333235833,1721962243547,-518.39,0.00013698,2]
[333235834,1721962243558,-504.46436506,0.00013698,2]
[333235835,1721962243568,-309.720981,0.00013698,2]
[333235836,1721962243579,-309.720981,0.00013698,2]
[333235837,1721962243591,-309.720981,0.00013698,2]
[333235838,1721962243604,-309.720981,0.00013698,2]
[333235839,1721962243614,-309.720981,0.00013698,2]
[333235840,1721962243624,-309.720981,0.00013698,2]
[333235841,1721962243633,-500.0,0.00013698,2]
[333235842,1721962243643,-309.720981,0.00013698,2]
[333235843,1721962243652,-500.0,0.00013698,2]
[333235844,1721962243664,-309.720981,0.00013698,2]
[333235845,1721962243673,-500.0,0.00013698,2]
[333235846,1721962243683,-500.0,0.00013698,2]
[333235847,1721962243693,-309.720981,0.00013698,2]
[333235848,1721962243702,-500.0,0.00013698,2]
[333235849,1721962243712,-309.720981,0.00013698,2]
[333235850,1721962243722,-500.0,0.00013698,2]
[333235851,1721962243731,-309.720981,0.00013698,2]
[333235852,1721962243740,-350.76287347,0.00013698,2]
[333235853,1721962243750,-502.36529503,0.00013698,2]
[333235854,1721962243759,-309.720981,0.00013698,2]
[333235855,1721962243768,-309.720981,0.00013698,2]
[333235856,1721962243778,-309.720981,0.00013698,2]
[333235857,1721962243787,-309.720981,0.00013698,2]
[333235858,1721962243796,-309.720981,0.00013698,2]
[333235859,1721962243806,-309.720981,0.00013698,2]
[333235860,1721962243815,-309.720981,0.00013698,2]
[333235861,1721962243824,-309.720981,0.00013698,2]
[333235862,1721962243833,-500.0,0.00013698,2]
[333235863,1721962243842,-309.720975,0.00013698,2]
[333235864,1721962243854,-500.0,0.00013698,2]
[333235865,1721962243864,-500.0,0.00013698,2]
[333235866,1721962243873,-500.0,0.00013698,2]
[333235867,1721962243882,-500.0,0.00013698,2]
[333235868,1721962243892,-500.0,0.00013698,2]
[333235869,1721962243901,-504.45439226,0.00013698,2]
[333235870,1721962243911,-151.0,0.00013698,2]
[333235871,1721962243920,-151.0,0.00013698,2]
[333235872,1721962243929,-154.567772,0.00013698,2]
[333235873,1721962243938,-151.0,0.00013698,2]
[333235874,1721962243947,-151.0,0.00013698,2]
[333235875,1721962243957,-500.0,0.00013698,2]
[333235876,1721962243967,-156.052143,0.00013698,2]
[333235877,1721962243976,-500.0,0.00013698,2]
[333235878,1721962243986,-193.51712386,0.00013698,2]
[333235879,1721962243995,-500.0,0.00013698,2]
[333235880,1721962244004,-500.0,0.00013698,2]
[333235881,1721962244014,-502.1295564,0.00013698,2]
[333235882,1721962244024,-502.24128874,0.00013698,2]
[333235883,1721962244033,-500.0,0.00013698,2]
[333235884,1721962244043,-859.52,0.00013698,2]
[333235885,1721962244053,-500.0,0.00013698,2]
[333235886,1721962244062,-850.62,0.00013698,2]
[333235887,1721962244072,-500.0,0.00013698,2]
[333235888,1721962244081,-500.0,0.00013698,2]
[333235889,1721962244090,-500.0,0.00013698,2]
[333235890,1721962244100,-500.0,0.00013698,2]
[333235891,1721962244111,-500.0,0.00013698,2]
[333235892,1721962244121,-500.0,0.00013698,2]
[333235893,1721962244130,-500.58453657,0.00013698,2]
[333235894,1721962244139,-500.0,0.00013698,2]
[333235895,1721962244148,-500.0,0.00013698,2]
[333235896,1721962244159,-500.0,0.00013698,2]
[333235897,1721962244168,-504.3600509,0.00013698,2]
[333235898,1721962244178,-500.0,0.00013698,2]
[333235899,1721962244187,-1182.5,0.00013698,2]
[333235900,1721962244196,-768.15,0.00013698,2]
[333235901,1721962244205,-500.0,0.00013698,2]
[333235902,1721962244214,-500.8979793,0.00013698,2]
[333235903,1721962244224,-483.65568664,0.00013698,2]
[333235904,1721962244233,-506.72955264,0.00013698,2]
[333235905,1721962244243,-511.33821148,0.00013698,2]
[333235906,1721962244252,-574.12,0.00013698,2]
[333235907,1721962244262,-971.41,0.00013698,2]
[333235908,1721962244271,-500.0,0.00013698,2]
[333235909,1721962244280,-506.92009557,0.00013698,2]
[333235910,1721962244290,-1492.26,0.00013698,2]
[333235911,1721962244299,-500.0,0.00013698,2]
[333235912,1721962244308,-610.06,0.00013698,2]
[333235913,1721962244318,-500.0,0.00013698,2]
[333235914,1721962244328,-531.31546034,0.00013698,2]
[333235915,1721962244337,-709.42,0.00013698,2]
[333235916,1721962244347,-505.76600272,0.00013698,2]
[333235917,1721962244358,-500.0,0.00013698,2]
[333235918,1721962244368,-502.99766997,0.00013698,2]
[333235919,1721962244378,-485.61762605,0.00013698,2]
[333235920,1721962244388,-500.0,0.00013698,2]
[333235921,1721962244398,-522.08,0.00013698,2]
[333235922,1721962244407,-500.0,0.00013698,2]
[333235923,1721962244417,-1085.17,0.00013698,2]
[333235924,1721962244428,-515.31335447,0.00013698,2]
[333235925,1721962244579,-500.0,0.00013698,2]
[333235926,1721962244592,-500.0,0.00013698,2]
[333235927,1721962244601,-777.63,0.00013698,2]
[333235928,1721962244611,-1012.05,0.00013698,2]
[333235929,1721962244622,-503.19222684,0.00013698,2]
[333235930,1721962244632,-713.33,0.00013698,2]
[333235931,1721962244642,-660.93,0.00013698,2]
[333235932,1721962244652,-500.0,0.00013698,2]
[333235933,1721962244663,-151.0,0.00013698,2]
[333235934,1721962244673,-151.0,0.00013698,2]
[333235935,1721962244682,-151.0,0.00013698,2]
[333235936,1721962244691,-6127.98,0.00013698,2]
[333235937,1721962244701,-151.0,0.00013698,2]
[333235938,1721962244710,-151.0,0.00013698,2]
[333235939,1721962244719,-151.0,0.00013698,2]
[333235940,1721962244729,-151.0,0.00013698,2]
[333235941,1721962244738,-151.0,0.00013698,2]
[333235942,1721962244747,-151.0,0.00013698,2]
[333235943,1721962244757,-151.0,0.00013698,2]
[333235944,1721962244766,-151.0,0.00013698,2]
[333235945,1721962244776,-503.44337496,0.00013698,2]
[333235946,1721962244786,-151.0,0.00013698,2]
[333235947,1721962244796,-248.44553181,0.00013698,2]
[333235948,1721962244806,-500.0,0.00013698,2]
[333235949,1721962244816,-1088.97,0.00013698,2]
[333235950,1721962244825,-500.0,0.00013698,2]
[333235951,1721962244836,-699.81,0.00013698,2]
[333235952,1721962244846,-502.48752705,0.00013698,2]
[333235953,1721962244860,-608.69,0.00013698,2]
[333235954,1721962244869,-502.47920055,0.00013698,2]
[333235955,1721962244879,-380.13474165,0.00013698,2]
[333235956,1721962244889,-500.0,0.00013698,2]
[333235957,1721962244898,-500.0,0.00013698,2]
[333235958,1721962244907,-500.0,0.00013698,2]
[333235959,1721962244916,-631.29,0.00013698,2]
[333235960,1721962244926,-504.02751053,0.00013698,2]
[333235961,1721962244935,-2647.96,0.00013698,2]
[333235962,1721962244946,-1005.35,0.00013698,2]
[333235963,1721962244955,-500.0,0.00013698,2]
[333235964,1721962244965,-2683.04,0.00013698,2]
[333235965,1721962244974,-816.54,0.00013698,2]
[333235966,1721962244984,-644.1,0.00013698,2]
[333235967,1721962244994,-500.0,0.00013698,2]
[333235968,1721962245004,-9231.31,0.00013698,2]
[333235969,1721962245013,-9231.31,0.00013698,2]
[333235970,1721962245023,-9231.31,0.00013698,2]
[333235971,1721962245032,-519.77707225,0.00013698,2]
[333235972,1721962245043,-9231.31,0.00013698,2]
[333235973,1721962245053,-500.0,0.00013698,2]
[333235974,1721962245062,-9231.31,0.00013698,2]
[333235975,1721962245073,-9231.31,0.00013698,2]
[333235976,1721962245083,-9231.31,0.00013698,2]
[333235977,1721962245094,-9231.31,0.00013698,2]
[333235978,1721962245108,-9231.31,0.00013698,2]
[333235979,1721962245118,-502.8022064,0.00013698,2]
[333235980,1721962245129,-9231.31,0.00013698,2]
[333235981,1721962245139,-500.0,0.00013698,2]
[333235982,1721962245149,-500.0,0.00013698,2]
[333235983,1721962245159,-500.0,0.00013698,2]
[333235984,1721962245169,-501.42190448,0.00013698,2]
[333235985,1721962245179,-500.0,0.00013698,2]
[333235986,1721962245189,-187.88288766,0.00013698,2]
[333235987,1721962245199,-500.0,0.00013698,2]
[333235988,1721962245208,-500.0,0.00013698,2]
[333235989,1721962245218,-500.0,0.00013698,2]
[333235990,1721962245227,-500.0,0.00013698,2]
[333235991,1721962245237,-500.0,0.00013698,2]
[333235992,1721962245247,-1558.46,0.00013698,2]
[333235993,1721962245256,-511.72464627,0.00013698,2]
[333235994,1721962245265,-724.62,0.00013698,2]
[333235995,1721962245275,-507.16265279,0.00013698,2]
[333235996,1721962245284,-1207.58,0.00013698,2]
[333235997,1721962245294,-500.0,0.00013698,2]
[333235998,1721962245304,-500.0,0.00013698,2]
[333235999,1721962245313,-226.859937,0.00013698,2]
[333236000,1721962245323,-226.859937,0.00013698,2]
[333236001,1721962245332,-501.45064022,0.00013698,2]
[333236002,1721962245342,-226.859937,0.00013698,2]
[333236003,1721962245351,-226.859937,0.00013698,2]
[333236004,1721962245363,-226.859937,0.00013698,2]
[333236005,1721962245372,-226.859937,0.00013698,2]
[333236006,1721962245383,-226.859937,0.00013698,2]
[333236007,1721962245392,-226.859937,0.00013698,2]
[333236008,1721962245402,-1988.65,0.00013698,2]
[333236009,1721962245411,-226.859937,0.00013698,2]
[333236010,1721962245421,-500.0,0.00013698,2]
[333236011,1721962245430,-226.859937,0.00013698,2]
[333236012,1721962245440,-226.859937,0.00013698,2]
[333236013,1721962245449,-248.597416,0.00013698,2]
[333236014,1721962245459,-226.859937,0.00013698,2]
[333236015,1721962245468,-248.597416,0.00013698,2]
[333236016,1721962245478,-226.859937,0.00013698,2]
[333236017,1721962245488,-502.81940615,0.00013698,2]
[333236018,1721962245498,-248.597416,0.00013698,2]
[333236019,1721962245508,-226.859937,0.00013698,2]
[333236020,1721962245517,-248.597416,0.00013698,2]
[333236021,1721962245527,-226.859937,0.00013698,2]
[333236022,1721962245536,-248.597416,0.00013698,2]
[333236024,1721962245546,-226.859937,0.00013698,2]
[333236026,1721962245556,-248.597416,0.00013698,2]
[333236028,1721962245566,-226.859937,0.00013698,2]
[333236029,1721962245576,-248.597416,0.00013698,2]
[333236030,1721962245588,-226.859937,0.00013698,2]
[333236031,1721962245597,-248.597416,0.00013698,2]
[333236032,1721962245608,-248.597416,0.00013698,2]
[333236033,1721962245617,-226.859937,0.00013698,2]
[333236034,1721962245627,-248.597416,0.00013698,2]
[333236035,1721962245636,-226.859937,0.00013698,2]
[333236036,1721962245645,-248.597416,0.00013698,2]
[333236037,1721962245655,-248.597416,0.00013698,2]
[333236038,1721962245666,-248.597416,0.00013698,2]
[333236039,1721962245676,-248.597416,0.00013698,2]
[333236040,1721962245686,-248.597416,0.00013698,2]
[333236041,1721962245695,-501.4892621,0.00013698,2]
[333236042,1721962245704,-504.09793732,0.00013698,2]
[333236043,1721962245713,-248.597416,0.00013698,2]
[333236044,1721962245722,-248.597416,0.00013698,2]
[333236045,1721962245732,-503.26300799,0.00013698,2]
[333236046,1721962245741,-248.597416,0.00013698,2]
[333236047,1721962245750,-248.597416,0.00013698,2]
[333236048,1721962245760,-248.597416,0.00013698,2]
[333236049,1721962245769,-502.67668242,0.00013698,2]
[333236050,1721962245779,-500.0,0.00013698,2]
[333236051,1721962245790,-500.0,0.00013698,2]
[333236052,1721962245799,-500.0,0.00013698,2]
[333236053,1721962245810,-501.17139742,0.00013698,2]
[333236054,1721962245819,-501.60274309,0.00013698,2]
[333236055,1721962245828,-500.0,0.00013698,2]
[333236056,1721962245838,-630.11,0.00013698,2]
[333236057,1721962245848,-500.0,0.00013698,2]
[333236058,1721962245859,-457.54401741,0.00013698,2]
[333236059,1721962245869,-500.0,0.00013698,2]
[333236060,1721962245878,-501.55009197,0.00013698,2]
[333236061,1721962245888,-151.0,0.00013698,2]
[333236062,1721962245898,-151.0,0.00013698,2]
[333236063,1721962245907,-1235.29,0.00013698,2]
[333236064,1721962245917,-151.0,0.00013698,2]
[333236065,1721962245926,-719.11,0.00013698,2]
[333236066,1721962245935,-151.0,0.00013698,2]
[333236067,1721962245945,-261.814288,0.00013698,2]
[333236068,1721962245954,-500.0,0.00013698,2]
[333236069,1721962245963,-500.0,0.00013698,2]
[333236070,1721962245972,-500.0,0.00013698,2]
[333236071,1721962245982,-1285.22,0.00013698,2]
[333236072,1721962245992,-491.7882469,0.00013698,2]
[333236073,1721962246002,-500.0,0.00013698,2]
[333236074,1721962246011,-500.0,0.00013698,2]
[333236075,1721962246020,-557.23,0.00013698,2]
[333236076,1721962246029,-500.0,0.00013698,2]
[333236077,1721962246039,-506.40701166,0.00013698,2]
[333236078,1721962246049,-976.12,0.00013698,2]
[333236079,1721962246059,-1269.4,0.00013698,2]
[333236080,1721962246068,-500.79460399,0.00013698,2]
[333236081,1721962246078,-1208.87,0.00013698,2]
[333236082,1721962246087,-500.0,0.00013698,2]
[333236083,1721962246097,-500.0,0.00013698,2]
[333236084,1721962246111,-500.0,0.00013698,2]
[333236085,1721962246121,-1005.55,0.00013698,2]
[333236086,1721962246133,-5871.91,0.00013698,2]
[333236087,1721962246142,-719.81,0.00013698,2]
[333236088,1721962246152,-1447.41,0.00013698,2]